[Event "Titled Tuesday Blitz March 22 Late 2022"]
[White "Martinez Reyes, Pedro Ramon"]
[Black "Romero Ruscalleda, Josep"]
[WhiteFideId "3901807"]
[BlackFideId "2231859"]
[WhiteElo "2410"]
[BlackElo "2273"]
[Result "1-0"]
[Round "05"]
[TimeControl "180+1"]
[Date "2022.03.22"]
[WhiteClock "0:00:28"]
[BlackClock "0:00:10"]

1. g4 {[%clk 0:03:00]}  g6 {[%clk 0:03:00]} 2. Bg2 {[%clk 0:02:55]}  Bg7 {[%clk 0:03:00]} 3. h4 {[%clk 0:02:54]}  h5 {[%clk 0:02:57]} 4. g5 {[%clk 0:02:53]}  d6 {[%clk 0:02:55]} 5. d4 {[%clk 0:02:50]}  Nc6 {[%clk 0:02:54]} 6. d5 {[%clk 0:02:44]}  Ne5 {[%clk 0:02:50]} 7. Nc3 {[%clk 0:02:43]}  Bf5 {[%clk 0:02:49]} 8. e4 {[%clk 0:02:41]}  Bd7 {[%clk 0:02:46]} 9. Qe2 {[%clk 0:02:37]}  e6 {[%clk 0:02:44]} 10. dxe6 {[%clk 0:02:22]}  fxe6 {[%clk 0:02:43]} 11. Bd2 {[%clk 0:01:48]}  Ne7 {[%clk 0:02:42]} 12. f4 {[%clk 0:01:48]}  Ng4 {[%clk 0:02:41]} 13. Nh3 {[%clk 0:01:48]}  Nc6 {[%clk 0:02:40]} 14. Nf2 {[%clk 0:01:47]}  Nd4 {[%clk 0:02:33]} 15. Qf1 {[%clk 0:01:44]}  Nxc2+ {[%clk 0:02:28]} 16. Kd1 {[%clk 0:01:44]}  Nxf2+ {[%clk 0:02:28]} 17. Qxf2 {[%clk 0:01:44]}  Nxa1 {[%clk 0:02:28]} 18. Kc1 {[%clk 0:01:35]}  c5 {[%clk 0:02:18]} 19. Kb1 {[%clk 0:01:34]}  Nb3 {[%clk 0:02:10]} 20. axb3 {[%clk 0:01:34]}  Qb6 {[%clk 0:02:09]} 21. f5 {[%clk 0:01:30]}  Bd4 {[%clk 0:02:03]} 22. Qe2 {[%clk 0:01:29]}  Qxb3 {[%clk 0:01:47]} 23. f6 {[%clk 0:01:25]}  O-O-O {[%clk 0:01:44]} 24. Rc1 {[%clk 0:01:16]}  e5 {[%clk 0:01:37]} 25. Rc2 {[%clk 0:01:14]}  Be6 {[%clk 0:01:35]} 26. Nd5 {[%clk 0:01:14]}  Kb8 {[%clk 0:01:29]} 27. Ba5 {[%clk 0:01:11]}  b6 {[%clk 0:01:27]} 28. Bc3 {[%clk 0:01:09]}  Bg4 {[%clk 0:01:09]} 29. Qd3 {[%clk 0:01:05]}  c4 {[%clk 0:01:06]} 30. Qd2 {[%clk 0:01:05]}  Bxc3 {[%clk 0:00:45]} 31. Rxc3 {[%clk 0:01:05]}  Qa4 {[%clk 0:00:45]} 32. Bf1 {[%clk 0:01:00]}  b5 {[%clk 0:00:44]} 33. Ne3 {[%clk 0:00:52]}  Be6 {[%clk 0:00:42]} 34. Ra3 {[%clk 0:00:52]}  c3 {[%clk 0:00:40]} 35. Qxc3 {[%clk 0:00:51]}  Qxe4+ {[%clk 0:00:40]} 36. Nc2 {[%clk 0:00:40]}  Rc8 {[%clk 0:00:34]} 37. Qd2 {[%clk 0:00:39]}  Rxc2 {[%clk 0:00:27]} 38. Qxc2 {[%clk 0:00:34]}  Qe1+ {[%clk 0:00:27]} 39. Qc1 {[%clk 0:00:32]}  Bf5+ {[%clk 0:00:26]} 40. Bd3 {[%clk 0:00:31]}  Qxc1+ {[%clk 0:00:23]} 41. Kxc1 {[%clk 0:00:31]}  Bxd3 {[%clk 0:00:19]} 42. Rxd3 {[%clk 0:00:32]}  Kc7 {[%clk 0:00:19]} 43. Rc3+ {[%clk 0:00:31]}  Kd7 {[%clk 0:00:19]} 44. Ra3 {[%clk 0:00:31]}  Ra8 {[%clk 0:00:18]} 45. b4 {[%clk 0:00:29]}  d5 {[%clk 0:00:18]} 46. Kd2 {[%clk 0:00:29]}  Ke6 {[%clk 0:00:18]} 47. Rc3 {[%clk 0:00:29]}  a6 {[%clk 0:00:17]} 48. Rc7 {[%clk 0:00:29]}  Kf5 {[%clk 0:00:17]} 49. Rg7 {[%clk 0:00:29]}  e4 {[%clk 0:00:16]} 50. Ke3 {[%clk 0:00:29]}  Rd8 {[%clk 0:00:15]} 51. Kd4 {[%clk 0:00:29]}  Re8 {[%clk 0:00:14]} 52. Re7 {[%clk 0:00:28]}  Rd8 {[%clk 0:00:13]} 53. Re5+ {[%clk 0:00:28]}  Kg4 {[%clk 0:00:13]} 54. Rxd5 {[%clk 0:00:29]}  Rxd5+ {[%clk 0:00:12]} 55. Kxd5 {[%clk 0:00:30]}  e3 {[%clk 0:00:12]} 56. f7 {[%clk 0:00:31]}  e2 {[%clk 0:00:13]} 57. f8=Q {[%clk 0:00:31]}  e1=Q {[%clk 0:00:14]} 58. Kc5 {[%clk 0:00:27]}  Qc3+ {[%clk 0:00:13]} 59. Kb6 {[%clk 0:00:26]}  Qa1 {[%clk 0:00:09]} 60. Qf6 {[%clk 0:00:26]}  Kxh4 {[%clk 0:00:08]} 61. Qxa1 {[%clk 0:00:25]}  Kxg5 {[%clk 0:00:08]} 62. Kxa6 {[%clk 0:00:25]}  h4 {[%clk 0:00:08]} 63. Kxb5 {[%clk 0:00:26]}  Kh5 {[%clk 0:00:08]} 64. Qh1 {[%clk 0:00:27]}  g5 {[%clk 0:00:09]} 65. Kc4 {[%clk 0:00:28]}  g4 {[%clk 0:00:09]} 66. Kd3 {[%clk 0:00:29]}  h3 {[%clk 0:00:10]} 67. Ke2 {[%clk 0:00:29]}  Kh4 {[%clk 0:00:10]} 68. Kf2 {[%clk 0:00:28]}  g3+ {[%clk 0:00:10]} 69. Kf3 {[%clk 0:00:29]}  g2 {[%clk 0:00:10]} 70. Qh2 {[%clk 0:00:29]}  Kg5 {[%clk 0:00:10]} 71. Kf2 {[%clk 0:00:28]}  Kg4 {[%clk 0:00:10]} 72. Qg3+ {[%clk 0:00:27]}  Kf5 {[%clk 0:00:10]} 73. Qxh3+ {[%clk 0:00:28]} 1-0


[Site "https://www.chess.com"]

[Event "Titled Tuesday Blitz March 22 Late 2022"]
[White "Melkumyan, Hrant"]
[Black "Fiol, Fabrice"]
[WhiteFideId "13302485"]
[BlackFideId "611670"]
[WhiteElo "2604"]
[BlackElo "2439"]
[Result "1-0"]
[Round "05"]
[TimeControl "180+1"]
[Date "2022.03.22"]
[WhiteClock "0:01:09"]
[BlackClock "0:00:34"]

1. c4 {[%clk 0:02:28]}  e5 {[%clk 0:02:58]} 2. g3 {[%clk 0:02:28]}  Nc6 {[%clk 0:02:57]} 3. Bg2 {[%clk 0:02:28]}  g6 {[%clk 0:02:57]} 4. Nc3 {[%clk 0:02:27]}  Bg7 {[%clk 0:02:58]} 5. e3 {[%clk 0:02:28]}  d6 {[%clk 0:02:58]} 6. Nge2 {[%clk 0:02:26]}  f5 {[%clk 0:02:58]} 7. d4 {[%clk 0:02:27]}  Nge7 {[%clk 0:02:50]} 8. dxe5 {[%clk 0:02:25]}  Nxe5 {[%clk 0:02:48]} 9. b3 {[%clk 0:02:26]}  O-O {[%clk 0:02:45]} 10. Bb2 {[%clk 0:02:26]}  Rb8 {[%clk 0:02:38]} 11. O-O {[%clk 0:02:26]}  Be6 {[%clk 0:02:38]} 12. Nf4 {[%clk 0:02:24]}  Bf7 {[%clk 0:02:38]} 13. Qc2 {[%clk 0:02:23]}  g5 {[%clk 0:02:33]} 14. Nfd5 {[%clk 0:02:23]}  Nxd5 {[%clk 0:02:34]} 15. Nxd5 {[%clk 0:02:23]}  c6 {[%clk 0:02:32]} 16. Nc3 {[%clk 0:02:21]}  Bg6 {[%clk 0:02:28]} 17. f4 {[%clk 0:02:13]}  Ng4 {[%clk 0:02:28]} 18. Rae1 {[%clk 0:02:12]}  Re8 {[%clk 0:02:25]} 19. Qd2 {[%clk 0:02:11]}  h6 {[%clk 0:02:17]} 20. h3 {[%clk 0:02:11]}  Nf6 {[%clk 0:02:16]} 21. fxg5 {[%clk 0:02:04]}  hxg5 {[%clk 0:02:16]} 22. e4 {[%clk 0:02:05]}  Nxe4 {[%clk 0:02:08]} 23. Nxe4 {[%clk 0:02:03]}  Bxb2 {[%clk 0:01:58]} 24. Qxb2 {[%clk 0:02:03]}  fxe4 {[%clk 0:01:56]} 25. Rf6 {[%clk 0:02:03]}  Kh7 {[%clk 0:01:51]} 26. Ref1 {[%clk 0:02:02]}  Re5 {[%clk 0:01:44]} 27. c5 {[%clk 0:01:51]}  e3 {[%clk 0:00:59]} 28. cxd6 {[%clk 0:01:43]}  e2 {[%clk 0:00:58]} 29. Qxe5 {[%clk 0:01:40]}  exf1=Q+ {[%clk 0:00:57]} 30. Bxf1 {[%clk 0:01:37]}  Qb6+ {[%clk 0:00:57]} 31. Kh2 {[%clk 0:01:36]}  Rg8 {[%clk 0:00:55]} 32. d7 {[%clk 0:01:27]}  Rg7 {[%clk 0:00:49]} 33. Rxg6 {[%clk 0:01:16]}  Rxg6 {[%clk 0:00:35]} 34. Qe7+ {[%clk 0:01:11]}  Rg7 {[%clk 0:00:36]} 35. d8=Q {[%clk 0:01:10]}  Qf2+ {[%clk 0:00:36]} 36. Bg2 {[%clk 0:01:10]}  Rxe7 {[%clk 0:00:34]} 37. Qxe7+ {[%clk 0:01:11]}  Kh6 {[%clk 0:00:35]} 38. Qxb7 {[%clk 0:01:08]}  g4 {[%clk 0:00:35]} 39. Qxc6+ {[%clk 0:01:08]}  Kg7 {[%clk 0:00:35]} 40. Qc3+ {[%clk 0:01:07]}  Kf8 {[%clk 0:00:35]} 41. Qb4+ {[%clk 0:01:07]}  Kg7 {[%clk 0:00:34]} 42. Qxg4+ {[%clk 0:01:08]}  Kf8 {[%clk 0:00:34]} 43. Qf3+ {[%clk 0:01:08]}  Qxf3 {[%clk 0:00:34]} 44. Bxf3 {[%clk 0:01:09]} 1-0


[Site "https://www.chess.com"]

[Event "Titled Tuesday Blitz March 22 Late 2022"]
[White "Mirza, Diana"]
[Black "Shandrygin, Nikita"]
[WhiteFideId "2503999"]
[BlackFideId "24198668"]
[WhiteElo "1813"]
[BlackElo "2324"]
[Result "0-1"]
[Round "05"]
[TimeControl "180+1"]
[Date "2022.03.22"]
[WhiteClock "0:00:05"]
[BlackClock "0:00:39"]

1. e4 {[%clk 0:02:59]}  c5 {[%clk 0:02:59]} 2. c4 {[%clk 0:02:55]}  Nc6 {[%clk 0:02:58]} 3. Nc3 {[%clk 0:02:55]}  e6 {[%clk 0:02:59]} 4. g3 {[%clk 0:02:55]}  g6 {[%clk 0:02:58]} 5. Bg2 {[%clk 0:02:55]}  Bg7 {[%clk 0:02:58]} 6. Nge2 {[%clk 0:02:56]}  Nge7 {[%clk 0:02:58]} 7. d3 {[%clk 0:02:57]}  O-O {[%clk 0:02:58]} 8. O-O {[%clk 0:02:57]}  d6 {[%clk 0:02:57]} 9. f4 {[%clk 0:02:55]}  f5 {[%clk 0:02:57]} 10. Be3 {[%clk 0:02:53]}  Nd4 {[%clk 0:02:57]} 11. Rc1 {[%clk 0:02:35]}  Rb8 {[%clk 0:02:55]} 12. b4 {[%clk 0:02:20]}  Nec6 {[%clk 0:02:14]} 13. b5 {[%clk 0:02:10]}  Ne7 {[%clk 0:02:13]} 14. a4 {[%clk 0:01:45]}  b6 {[%clk 0:01:59]} 15. a5 {[%clk 0:01:41]}  Bb7 {[%clk 0:01:58]} 16. a6 {[%clk 0:01:41]}  Ba8 {[%clk 0:01:58]} 17. Bxd4 {[%clk 0:01:31]}  cxd4 {[%clk 0:01:58]} 18. Nb1 {[%clk 0:01:30]}  e5 {[%clk 0:01:50]} 19. Nd2 {[%clk 0:01:25]}  Qd7 {[%clk 0:01:43]} 20. Nb3 {[%clk 0:01:23]}  fxe4 {[%clk 0:01:38]} 21. dxe4 {[%clk 0:01:16]}  Rf7 {[%clk 0:01:35]} 22. Qd3 {[%clk 0:01:11]}  Rbf8 {[%clk 0:01:34]} 23. Kh1 {[%clk 0:00:55]}  Bh6 {[%clk 0:01:34]} 24. Nbxd4 {[%clk 0:00:42]}  exd4 {[%clk 0:01:29]} 25. Nxd4 {[%clk 0:00:42]}  Bg7 {[%clk 0:01:22]} 26. Rce1 {[%clk 0:00:28]}  Qc8 {[%clk 0:01:00]} 27. Nf3 {[%clk 0:00:24]}  Rd8 {[%clk 0:00:57]} 28. Ng5 {[%clk 0:00:22]}  Rff8 {[%clk 0:00:47]} 29. Bh3 {[%clk 0:00:22]}  Nf5 {[%clk 0:00:48]} 30. Kg1 {[%clk 0:00:19]}  Qc5+ {[%clk 0:00:45]} 31. Rf2 {[%clk 0:00:15]}  Bd4 {[%clk 0:00:44]} 32. exf5 {[%clk 0:00:10]}  Bxf2+ {[%clk 0:00:43]} 33. Kf1 {[%clk 0:00:10]}  Bxe1 {[%clk 0:00:42]} 34. Kxe1 {[%clk 0:00:11]}  Rde8+ {[%clk 0:00:41]} 35. Ne6 {[%clk 0:00:11]}  gxf5 {[%clk 0:00:39]} 36. Bxf5 {[%clk 0:00:09]}  Qxf5 {[%clk 0:00:37]} 37. Qxf5 {[%clk 0:00:06]}  Rxf5 {[%clk 0:00:38]} 38. Kd2 {[%clk 0:00:05]}  Rxe6 {[%clk 0:00:39]} 0-1


[Site "https://www.chess.com"]

[Event "Titled Tuesday Blitz March 22 Late 2022"]
[White "Nenezic, Marko"]
[Black "Spata, German"]
[WhiteFideId "912123"]
[BlackFideId "113026"]
[WhiteElo "2457"]
[BlackElo "2238"]
[Result "0-1"]
[Round "05"]
[TimeControl "180+1"]
[Date "2022.03.22"]
[WhiteClock "0:00:05"]
[BlackClock "0:00:10"]

1. d4 {[%clk 0:03:00]}  e6 {[%clk 0:02:53]} 2. c4 {[%clk 0:02:58]}  Nf6 {[%clk 0:02:46]} 3. Nc3 {[%clk 0:02:58]}  d5 {[%clk 0:02:42]} 4. Bg5 {[%clk 0:02:57]}  Be7 {[%clk 0:02:41]} 5. e3 {[%clk 0:02:57]}  O-O {[%clk 0:02:38]} 6. Nf3 {[%clk 0:02:57]}  c6 {[%clk 0:02:38]} 7. Qc2 {[%clk 0:02:56]}  Nbd7 {[%clk 0:02:37]} 8. Rd1 {[%clk 0:02:57]}  Re8 {[%clk 0:02:33]} 9. a3 {[%clk 0:02:56]}  a6 {[%clk 0:02:32]} 10. h3 {[%clk 0:02:43]}  dxc4 {[%clk 0:02:28]} 11. Bxc4 {[%clk 0:02:43]}  Nd5 {[%clk 0:02:28]} 12. Bxe7 {[%clk 0:02:40]}  Qxe7 {[%clk 0:02:27]} 13. O-O {[%clk 0:02:36]}  b6 {[%clk 0:02:01]} 14. Ba2 {[%clk 0:02:25]}  Bb7 {[%clk 0:02:00]} 15. Bb1 {[%clk 0:02:25]}  g6 {[%clk 0:01:57]} 16. e4 {[%clk 0:01:59]}  Nxc3 {[%clk 0:01:56]} 17. Qxc3 {[%clk 0:01:59]}  Nf6 {[%clk 0:01:46]} 18. Qe3 {[%clk 0:01:55]}  Rac8 {[%clk 0:01:39]} 19. Rc1 {[%clk 0:01:55]}  c5 {[%clk 0:01:32]} 20. dxc5 {[%clk 0:01:55]}  Rxc5 {[%clk 0:01:31]} 21. Rxc5 {[%clk 0:01:54]}  Qxc5 {[%clk 0:01:29]} 22. Qxc5 {[%clk 0:01:54]}  bxc5 {[%clk 0:01:29]} 23. Re1 {[%clk 0:01:30]}  Rd8 {[%clk 0:01:10]} 24. Kh2 {[%clk 0:01:28]}  Kf8 {[%clk 0:01:00]} 25. g4 {[%clk 0:01:28]}  Ke7 {[%clk 0:00:58]} 26. Kg3 {[%clk 0:01:28]}  Bc6 {[%clk 0:00:51]} 27. Kf4 {[%clk 0:01:21]}  h6 {[%clk 0:00:50]} 28. Ke3 {[%clk 0:01:18]}  Rb8 {[%clk 0:00:49]} 29. Re2 {[%clk 0:01:14]}  Rb3+ {[%clk 0:00:45]} 30. Kf4 {[%clk 0:01:14]}  g5+ {[%clk 0:00:37]} 31. Kg3 {[%clk 0:01:15]}  Nd7 {[%clk 0:00:32]} 32. Ba2 {[%clk 0:01:08]}  Rd3 {[%clk 0:00:27]} 33. Bb1 {[%clk 0:01:04]}  Rb3 {[%clk 0:00:26]} 34. Kg2 {[%clk 0:00:28]}  f6 {[%clk 0:00:22]} 35. Ba2 {[%clk 0:00:28]}  Rd3 {[%clk 0:00:17]} 36. Ne1 {[%clk 0:00:28]}  Rd1 {[%clk 0:00:16]} 37. f3 {[%clk 0:00:25]}  Ne5 {[%clk 0:00:17]} 38. Kf2 {[%clk 0:00:22]}  Bb5 {[%clk 0:00:17]} 39. Rc2 {[%clk 0:00:20]}  Kd6 {[%clk 0:00:16]} 40. Bb3 {[%clk 0:00:17]}  Rb1 {[%clk 0:00:14]} 41. Ba2 {[%clk 0:00:17]}  Rd1 {[%clk 0:00:13]} 42. Bb3 {[%clk 0:00:17]}  Rb1 {[%clk 0:00:13]} 43. Rd2+ {[%clk 0:00:17]}  Ke7 {[%clk 0:00:13]} 44. Ba2 {[%clk 0:00:18]}  Ra1 {[%clk 0:00:13]} 45. Bb3 {[%clk 0:00:17]}  c4 {[%clk 0:00:13]} 46. Bd1 {[%clk 0:00:16]}  Ra2 {[%clk 0:00:12]} 47. Ke3 {[%clk 0:00:15]}  Ra1 {[%clk 0:00:12]} 48. Nc2 {[%clk 0:00:13]}  Rc1 {[%clk 0:00:10]} 49. Nd4 {[%clk 0:00:12]}  Kf7 {[%clk 0:00:10]} 50. Be2 {[%clk 0:00:12]}  Rh1 {[%clk 0:00:09]} 51. Nxb5 {[%clk 0:00:09]}  axb5 {[%clk 0:00:09]} 52. Rd6 {[%clk 0:00:09]}  Rxh3 {[%clk 0:00:09]} 53. Rb6 {[%clk 0:00:09]}  Nxg4+ {[%clk 0:00:09]} 54. Kd2 {[%clk 0:00:10]}  Ne5 {[%clk 0:00:08]} 55. Rxb5 {[%clk 0:00:11]}  Nxf3+ {[%clk 0:00:09]} 56. Bxf3 {[%clk 0:00:09]}  Rxf3 {[%clk 0:00:10]} 57. a4 {[%clk 0:00:09]}  Rf2+ {[%clk 0:00:09]} 58. Kc3 {[%clk 0:00:09]}  g4 {[%clk 0:00:09]} 59. a5 {[%clk 0:00:08]}  g3 {[%clk 0:00:10]} 60. a6 {[%clk 0:00:06]}  g2 {[%clk 0:00:10]} 61. a7 {[%clk 0:00:05]}  g1=Q {[%clk 0:00:10]} 62. a8=Q {[%clk 0:00:06]}  Qe1+ {[%clk 0:00:10]} 63. Kd4 {[%clk 0:00:05]}  Qd2+ {[%clk 0:00:10]} 64. Kc5 {[%clk 0:00:05]}  Qe3+ {[%clk 0:00:09]} 65. Kc6 {[%clk 0:00:05]}  Qxe4+ {[%clk 0:00:10]} 0-1


[Site "https://www.chess.com"]

[Event "Titled Tuesday Blitz March 22 Late 2022"]
[White "Oganian, Miran"]
[Black "Jacobson, Brandon"]
[WhiteFideId "4122488"]
[BlackFideId "30901561"]
[WhiteElo "2357"]
[BlackElo "2362"]
[Result "1-0"]
[Round "05"]
[TimeControl "180+1"]
[Date "2022.03.22"]
[WhiteClock "0:00:12"]
[BlackClock "0:00:01"]

1. e4 {[%clk 0:03:00]}  c5 {[%clk 0:02:59]} 2. Nf3 {[%clk 0:03:00]}  d6 {[%clk 0:02:59]} 3. Bb5+ {[%clk 0:03:00]}  Bd7 {[%clk 0:02:58]} 4. Bxd7+ {[%clk 0:03:00]}  Nxd7 {[%clk 0:02:59]} 5. O-O {[%clk 0:03:00]}  Ngf6 {[%clk 0:02:59]} 6. Qe2 {[%clk 0:03:00]}  e6 {[%clk 0:03:00]} 7. b3 {[%clk 0:03:00]}  g6 {[%clk 0:02:59]} 8. Bb2 {[%clk 0:03:00]}  Bg7 {[%clk 0:03:00]} 9. c4 {[%clk 0:03:00]}  O-O {[%clk 0:02:58]} 10. Nc3 {[%clk 0:03:00]}  Ng4 {[%clk 0:02:51]} 11. Rad1 {[%clk 0:02:59]}  Nge5 {[%clk 0:02:51]} 12. Nxe5 {[%clk 0:02:56]}  Nxe5 {[%clk 0:02:52]} 13. f4 {[%clk 0:02:53]}  Nc6 {[%clk 0:02:52]} 14. Kh1 {[%clk 0:02:48]}  Qd7 {[%clk 0:02:51]} 15. d3 {[%clk 0:02:44]}  f5 {[%clk 0:02:51]} 16. Na4 {[%clk 0:02:40]}  Bxb2 {[%clk 0:02:46]} 17. Nxb2 {[%clk 0:02:38]}  Nd4 {[%clk 0:02:45]} 18. Qf2 {[%clk 0:02:32]}  Rf7 {[%clk 0:02:34]} 19. Rde1 {[%clk 0:01:58]}  fxe4 {[%clk 0:02:30]} 20. dxe4 {[%clk 0:01:55]}  e5 {[%clk 0:02:18]} 21. Nd3 {[%clk 0:01:56]}  exf4 {[%clk 0:02:18]} 22. e5 {[%clk 0:01:49]}  Raf8 {[%clk 0:02:09]} 23. Qh4 {[%clk 0:01:35]}  Qf5 {[%clk 0:02:03]} 24. Nf2 {[%clk 0:01:17]}  Qe6 {[%clk 0:00:34]} 25. Ng4 {[%clk 0:01:03]}  Nf5 {[%clk 0:00:34]} 26. Qg5 {[%clk 0:00:58]}  dxe5 {[%clk 0:00:24]} 27. Rxe5 {[%clk 0:00:57]}  Qd6 {[%clk 0:00:24]} 28. Qxf4 {[%clk 0:00:48]}  Ng3+ {[%clk 0:00:23]} 29. hxg3 {[%clk 0:00:45]}  Rxf4 {[%clk 0:00:24]} 30. gxf4 {[%clk 0:00:45]}  h5 {[%clk 0:00:21]} 31. Rd5 {[%clk 0:00:40]}  Qe6 {[%clk 0:00:17]} 32. Ne5 {[%clk 0:00:37]}  g5 {[%clk 0:00:16]} 33. Nf3 {[%clk 0:00:22]}  gxf4 {[%clk 0:00:08]} 34. Re1 {[%clk 0:00:22]}  Qf6 {[%clk 0:00:05]} 35. Ree5 {[%clk 0:00:23]}  Rf7 {[%clk 0:00:05]} 36. Ng5 {[%clk 0:00:18]}  Re7 {[%clk 0:00:04]} 37. Rf5 {[%clk 0:00:16]}  Qa1+ {[%clk 0:00:04]} 38. Kh2 {[%clk 0:00:16]}  Re1 {[%clk 0:00:04]} 39. Rd8+ {[%clk 0:00:12]}  Kg7 {[%clk 0:00:04]} 40. Rf7+ {[%clk 0:00:11]}  Kg6 {[%clk 0:00:05]} 41. Rg8+ {[%clk 0:00:11]}  Kh6 {[%clk 0:00:01]} 42. Rh7# {[%clk 0:00:12]} 1-0


[Site "https://www.chess.com"]

[Event "Titled Tuesday Blitz March 22 Late 2022"]
[White "Olsen, Filip Boe"]
[Black "Demchenko, Anton"]
[WhiteFideId "1440640"]
[BlackFideId "4160258"]
[WhiteElo "2188"]
[BlackElo "2539"]
[Result "0-1"]
[Round "05"]
[TimeControl "180+1"]
[Date "2022.03.22"]
[WhiteClock "0:00:12"]
[BlackClock "0:00:14"]

1. d4 {[%clk 0:02:54]}  Nf6 {[%clk 0:02:59]} 2. c4 {[%clk 0:02:51]}  g6 {[%clk 0:02:58]} 3. Nc3 {[%clk 0:02:51]}  Bg7 {[%clk 0:02:58]} 4. Nf3 {[%clk 0:02:47]}  O-O {[%clk 0:02:56]} 5. g3 {[%clk 0:02:45]}  d6 {[%clk 0:02:55]} 6. Bg2 {[%clk 0:02:45]}  Nbd7 {[%clk 0:02:56]} 7. O-O {[%clk 0:02:46]}  e5 {[%clk 0:02:56]} 8. e4 {[%clk 0:02:39]}  exd4 {[%clk 0:02:57]} 9. Nxd4 {[%clk 0:02:39]}  Nc5 {[%clk 0:02:58]} 10. h3 {[%clk 0:02:39]}  Re8 {[%clk 0:02:57]} 11. Re1 {[%clk 0:02:39]}  a5 {[%clk 0:02:58]} 12. Ndb5 {[%clk 0:02:33]}  Bd7 {[%clk 0:02:58]} 13. Bf4 {[%clk 0:02:32]}  Bxb5 {[%clk 0:02:58]} 14. cxb5 {[%clk 0:02:30]}  Nfd7 {[%clk 0:02:59]} 15. Rc1 {[%clk 0:02:27]}  h5 {[%clk 0:02:58]} 16. h4 {[%clk 0:02:14]}  Ne5 {[%clk 0:02:57]} 17. Bf1 {[%clk 0:02:02]}  c6 {[%clk 0:02:57]} 18. Be3 {[%clk 0:02:02]}  Qe7 {[%clk 0:02:53]} 19. bxc6 {[%clk 0:01:58]}  bxc6 {[%clk 0:02:54]} 20. Bxc5 {[%clk 0:01:54]}  dxc5 {[%clk 0:02:55]} 21. Qe2 {[%clk 0:01:42]}  c4 {[%clk 0:02:48]} 22. Red1 {[%clk 0:01:34]}  Rab8 {[%clk 0:02:45]} 23. Rc2 {[%clk 0:01:33]}  Nd3 {[%clk 0:02:37]} 24. Na4 {[%clk 0:01:29]}  Rb4 {[%clk 0:02:08]} 25. b3 {[%clk 0:01:27]}  cxb3 {[%clk 0:02:08]} 26. axb3 {[%clk 0:01:28]}  Ne5 {[%clk 0:02:05]} 27. Nc5 {[%clk 0:01:25]}  Ng4 {[%clk 0:01:52]} 28. Bh3 {[%clk 0:01:19]}  Bd4 {[%clk 0:01:29]} 29. Bxg4 {[%clk 0:01:14]}  Bxc5 {[%clk 0:01:29]} 30. Bd7 {[%clk 0:01:00]}  Rxe4 {[%clk 0:01:25]} 31. Qxe4 {[%clk 0:00:51]}  Qxe4 {[%clk 0:01:24]} 32. Rxc5 {[%clk 0:00:46]}  Rd8 {[%clk 0:01:16]} 33. Rcc1 {[%clk 0:00:41]}  Kg7 {[%clk 0:01:06]} 34. Bh3 {[%clk 0:00:34]}  Rxd1+ {[%clk 0:01:05]} 35. Rxd1 {[%clk 0:00:35]}  Qc2 {[%clk 0:01:04]} 36. Rd6 {[%clk 0:00:31]}  Qxb3 {[%clk 0:01:01]} 37. Rxc6 {[%clk 0:00:31]}  a4 {[%clk 0:01:02]} 38. Bf1 {[%clk 0:00:30]}  a3 {[%clk 0:00:58]} 39. Bc4 {[%clk 0:00:30]}  Qb1+ {[%clk 0:00:57]} 40. Kh2 {[%clk 0:00:29]}  a2 {[%clk 0:00:56]} 41. Bxa2 {[%clk 0:00:28]}  Qxa2 {[%clk 0:00:56]} 42. Kg1 {[%clk 0:00:26]}  Qb1+ {[%clk 0:00:56]} 43. Kh2 {[%clk 0:00:26]}  Qf1 {[%clk 0:00:52]} 44. Rc2 {[%clk 0:00:25]}  Qd3 {[%clk 0:00:50]} 45. Ra2 {[%clk 0:00:23]}  Kf6 {[%clk 0:00:49]} 46. Rb2 {[%clk 0:00:21]}  Qd4 {[%clk 0:00:48]} 47. Re2 {[%clk 0:00:20]}  Qc4 {[%clk 0:00:46]} 48. Re3 {[%clk 0:00:20]}  Qd5 {[%clk 0:00:45]} 49. Kg1 {[%clk 0:00:20]}  Kf5 {[%clk 0:00:45]} 50. Kf1 {[%clk 0:00:20]}  Kg4 {[%clk 0:00:44]} 51. Ke2 {[%clk 0:00:20]}  Qc4+ {[%clk 0:00:42]} 52. Ke1 {[%clk 0:00:20]}  Kh3 {[%clk 0:00:40]} 53. Rf3 {[%clk 0:00:20]}  Kg2 {[%clk 0:00:35]} 54. Rf4 {[%clk 0:00:16]}  Qe6+ {[%clk 0:00:35]} 55. Kd2 {[%clk 0:00:15]}  f5 {[%clk 0:00:35]} 56. Kd1 {[%clk 0:00:15]}  Kf1 {[%clk 0:00:32]} 57. Kd2 {[%clk 0:00:15]}  Qe2+ {[%clk 0:00:31]} 58. Kc3 {[%clk 0:00:16]}  Ke1 {[%clk 0:00:29]} 59. Kd4 {[%clk 0:00:16]}  Qe6 {[%clk 0:00:28]} 60. Kc5 {[%clk 0:00:13]}  Ke2 {[%clk 0:00:27]} 61. Kd4 {[%clk 0:00:13]}  Qd6+ {[%clk 0:00:13]} 62. Kc4 {[%clk 0:00:12]}  Kf1 {[%clk 0:00:14]} 63. Kc3 {[%clk 0:00:12]}  Ke2 {[%clk 0:00:11]} 64. Kc4 {[%clk 0:00:12]}  Qd3+ {[%clk 0:00:12]} 65. Kc5 {[%clk 0:00:12]}  Qd2 {[%clk 0:00:10]} 66. Kc6 {[%clk 0:00:11]}  Qxf4 {[%clk 0:00:10]} 67. gxf4 {[%clk 0:00:12]}  Kxf2 {[%clk 0:00:11]} 68. Kd6 {[%clk 0:00:10]}  Kg3 {[%clk 0:00:11]} 69. Ke5 {[%clk 0:00:11]}  Kxh4 {[%clk 0:00:11]} 70. Kf6 {[%clk 0:00:12]}  Kg4 {[%clk 0:00:12]} 71. Kxg6 {[%clk 0:00:12]}  h4 {[%clk 0:00:13]} 72. Kf6 {[%clk 0:00:12]}  h3 {[%clk 0:00:14]} 0-1


[Site "https://www.chess.com"]